fUSD/lending_fUSD_20240819
["ID","MTS","AMOUNT","RATE_DAILY","PERIOD"]
[335313272,1724101844343,-14505.68233468,0.00018,3]
[335313274,1724101844353,-1000.0,0.00018,2]
[335313276,1724101844363,-152086.75612213,0.00018,5]
[335313278,1724101844373,-3164.34867275,0.00018,3]
[335313280,1724101844383,-1020.12908425,0.00018,2]
[335313282,1724101844392,-717.0,0.00018,30]
[335313283,1724101844401,-1250.0,0.00018,2]
[335313285,1724101844411,-151.0,0.00018,2]
[335313287,1724101844420,-151.0,0.00018,2]
[335313289,1724101844429,-151.0,0.00018,2]
[335313291,1724101844438,-151.212212,0.00018,2]
[335313293,1724101844448,-151.0,0.00018,2]
[335313294,1724101844457,-151.0,0.00018,2]
[335313296,1724101844467,-151.0,0.00018,2]
[335313298,1724101844476,-151.0,0.00018,2]
[335313300,1724101844485,-151.0,0.00018,2]
[335313301,1724101844494,-151.0,0.00018,2]
[335313303,1724101844504,-151.0,0.00018,2]
[335313305,1724101844513,-151.0,0.00018,2]
[335313307,1724101844525,-151.0,0.00018,2]
[335313309,1724101844534,-251.389892,0.00018,2]
[335313311,1724101844543,-251.389892,0.00018,2]
[335313312,1724101844552,-151.0,0.00018,2]
[335313314,1724101844561,-151.0,0.00018,2]
[335313316,1724101844571,-151.0,0.00018,2]
[335313318,1724101844581,-151.0,0.00018,2]
[335313320,1724101844589,-151.0,0.00018,2]
[335313322,1724101844598,-151.0,0.00018,2]
[335313323,1724101844607,-151.0,0.00018,2]
[335313325,1724101844617,-151.0,0.00018,2]
[335313327,1724101844626,-151.0,0.00018,2]
[335313329,1724101844635,-151.0,0.00018,2]
[335313331,1724101844644,-151.0,0.00018,2]
[335313332,1724101844653,-151.0,0.00018,2]
[335313334,1724101844662,-151.0,0.00018,2]
[335313336,1724101844671,-151.0,0.00018,2]
[335313337,1724101844681,-151.0,0.00018,2]
[335313339,1724101844690,-1012.48,0.00018,2]
[335313341,1724101844699,-151.0,0.00018,2]
[335313343,1724101844708,-151.0,0.00018,2]
[335313345,1724101844717,-151.0,0.00018,2]
[335313347,1724101844726,-151.0,0.00018,2]
[335313348,1724101844735,-151.0,0.00018,2]
[335313350,1724101844744,-315.76,0.00018,2]
[335313352,1724101844754,-151.0,0.00018,2]
[335313354,1724101844763,-151.0,0.00018,2]
[335313356,1724101844776,-151.0,0.00018,2]
[335313358,1724101844785,-151.0,0.00018,2]
[335313359,1724101844794,-252.243799,0.00018,2]
[335313361,1724101844803,-252.243799,0.00018,2]
[335313363,1724101844813,-23283.19816089,0.00018,2]
[335313364,1724101844822,-151.0,0.00018,2]
[335313366,1724101844831,-230.181523,0.00018,2]
[335313368,1724101844841,-230.181523,0.00018,2]
[335313370,1724101844851,-210.610712,0.00018,2]
[335313372,1724101844863,-210.610712,0.00018,2]
[335313374,1724101844872,-151.041365,0.00018,2]
[335313376,1724101844881,-151.041365,0.00018,2]
[335313377,1724101844890,-150.0,0.00018,2]
[335313379,1724101844900,-151.0,0.00018,2]
[335313381,1724101844911,-151.0,0.00018,2]
[335313383,1724101844921,-150.0,0.00018,2]
[335313384,1724101844930,-151.0,0.00018,2]
[335313386,1724101844939,-151.0,0.00018,2]
[335313388,1724101844948,-151.0,0.00018,2]
[335313390,1724101844957,-150.0,0.00018,2]
[335313391,1724101844967,-1675.95057841,0.000181,2]
[335313393,1724101844979,-694.0,0.000183,6]
[335313395,1724101844988,-400.0,0.00018342,2]
[335313397,1724101844997,-600.0,0.00018346,2]
[335313399,1724101845006,-600.0,0.00018346,2]
[335313400,1724101845017,-603.4,0.00018362,2]
[335313402,1724101845029,-433.14655599,0.00018374,2]
[335313404,1724101845038,-500.0,0.00018439,2]
[335313406,1724101845048,-33769.49618798,0.0001844,2]
[335313408,1724101845059,-167.0,0.00018444,2]
[335313410,1724101845070,-3005.0,0.00018463,7]
[335313412,1724101845079,-1302.61754511,0.000185,2]
[335313414,1724101845089,-2534.60340674,0.000186,2]
[335313416,1724101845098,-2732.922021,0.0001863,2]
[335313417,1724101845107,-600.0,0.00018764,30]
[335313419,1724101845116,-694.0,0.000188,6]
[335313421,1724101845126,-1267.5871,0.0001885,2]
[335313423,1724101845135,-315.76,0.0001895,2]
[335313425,1724101845144,-150.0,0.00018973,2]
[335313427,1724101845153,-200.0,0.00018986,2]
[335313429,1724101845163,-819.83,0.00018986,2]
[335313431,1724101845173,-6312.5355975,0.00018987,2]
[335313433,1724101845183,-3057.4506057,0.00018987,2]
[335313434,1724101845192,-48273.0510595,0.00018987,2]
[335313436,1724101845202,-172.05333505,0.00018999,2]
[335313438,1724101845211,-819.83,0.00018999,2]
[335313440,1724101845220,-819.83,0.00018999,2]
[335313442,1724101845230,-819.83,0.00018999,2]
[335313444,1724101845239,-819.83,0.00018999,2]
[335313446,1724101845250,-819.83,0.00018999,2]
[335313448,1724101845259,-819.83,0.00018999,2]
[335313450,1724101845271,-819.83,0.00018999,2]
[335313451,1724101845280,-819.83,0.00018999,2]
[335313453,1724101845289,-819.97730781,0.00018999,2]
[335313455,1724101845299,-683.79,0.00018999,2]
[335313457,1724101845308,-683.79,0.00018999,2]
[335313459,1724101845318,-683.79,0.00018999,2]
[335313461,1724101845328,-683.79,0.00018999,2]
[335313463,1724101845338,-683.79,0.00018999,2]
[335313465,1724101845348,-683.79,0.00018999,2]
[335313467,1724101845357,-683.79,0.00018999,2]
[335313468,1724101845366,-683.96993269,0.00018999,2]
[335313470,1724101845375,-29238.1499706,0.00019,2]
[335313472,1724101845384,-186.59915183,0.00019,2]
[335313474,1724101845393,-155.15008316,0.00019,2]
[335313476,1724101845402,-647.09591446,0.00019,2]
[335313477,1724101845411,-255048.66682557,0.00019,2]
[335313479,1724101845421,-487969.74175002,0.00019,2]
[335313481,1724101845430,-165704.92319745,0.00019,2]
[335313483,1724101845439,-155.0,0.00019,2]
[335313484,1724101845448,-89200.71228705,0.00019,2]
[335313596,1724101846657,-1182.37,0.00015,2]
[335313598,1724101846666,-1182.37,0.00015,2]
[335313599,1724101846676,-1182.37,0.00015,2]
[335313601,1724101846686,-1182.37,0.00015,2]
[335313603,1724101846695,-1182.37,0.00015,2]
[335313605,1724101846704,-1182.37,0.00015,2]
[335313607,1724101846714,-1182.37,0.00015,2]
[335313609,1724101846723,-1182.37,0.00015,2]
[335313610,1724101846732,-1182.37,0.00015,2]
[335313612,1724101846742,-1182.37,0.00015,2]
[335313614,1724101846751,-1182.37,0.00015,2]
[335313616,1724101846761,-1182.37,0.00015,2]
[335313618,1724101846770,-1182.37,0.00015,2]
[335313620,1724101846780,-1182.37,0.00015,2]
[335313622,1724101846790,-1182.37,0.00015,2]
[335313624,1724101846800,-1182.37,0.00015,2]
[335313626,1724101846810,-1060.00514882,0.00015,2]
[335314455,1724101989336,2351.436,9.809e-05,2]
[335314456,1724102019131,20406.54578985,9.809e-05,2]
[335314457,1724102027139,20406.54578985,9.809e-05,2]
[335314458,1724102032764,16244.70504131,9.809e-05,2]
[335314459,1724102036028,3073.03961073,9.809e-05,2]
[335314460,1724102040521,1269.59062795,9.809e-05,2]
[335314461,1724102062760,16244.70504131,9.809e-05,2]
[335314462,1724102079549,353.4634764,9.809e-05,2]
[335314463,1724102130140,20368.40636016,9.809e-05,2]
[335314464,1724102135045,3070.34679039,9.809e-05,2]
[335314465,1724102171556,1269.59062795,9.809e-05,2]
[335314466,1724102239557,3072.50118676,9.809e-05,2]
[335314467,1724102255537,1269.59062795,9.809e-05,2]
[335314468,1724102266155,20389.15238226,9.809e-05,2]
[335314469,1724102368776,16244.70504131,9.809e-05,2]
[335314470,1724102402073,3067.65326956,9.809e-05,2]
[335314471,1724102469785,16212.91350155,9.809e-05,2]
[335314472,1724102477047,1266.95440355,9.809e-05,2]
[335314473,1724102634903,6849.30275582,9.809e-05,2]
[335314474,1724102719739,2373.54747181,9e-05,2]
[335314475,1724102754466,4488.55006468,6.94e-05,2]
[335314477,1724102800222,683.79,8.412e-05,2]
[335314478,1724102804608,797.320774,8.412e-05,2]
[335314479,1724102825726,542.36,9.789e-05,2]
[335314480,1724102841730,250.0,9.779e-05,2]
[335314481,1724102844383,295.35,9.784e-05,2]
[335314488,1724102965399,23900.0,9.741e-05,2]
[335314534,1724103032075,-1001.45490138,9.943e-05,2]
[335314535,1724103032085,-155.0,9.988e-05,2]
[335314536,1724103032095,-1276.96040466,9.999e-05,2]
[335314537,1724103032104,-1050.0,0.0001,2]
[335314538,1724103032114,-454.71526494,0.00010009,2]
[335314539,1724103032123,-155.0,0.00010026,2]
[335314540,1724103032132,-300.0,0.000102,3]
[335314541,1724103032141,-700.0,0.000103,3]
[335314542,1724103032151,-1100.0,0.000104,3]
[335314543,1724103032161,-181.79,0.00010419,2]
[335314544,1724103032170,-1500.0,0.000105,3]
[335314545,1724103032180,-1010.25,0.000105,2]
[335314546,1724103032189,-500.0,0.00010577,2]
[335314547,1724103032200,-500.0,0.00010585,2]
[335314548,1724103032210,-500.0,0.00010594,2]
[335314549,1724103032220,-1900.0,0.000106,3]
[335314550,1724103032229,-500.0,0.00010603,2]
[335314551,1724103032238,-500.0,0.00010612,2]
[335314552,1724103032248,-500.0,0.00010621,2]
[335314553,1724103032257,-500.0,0.00010629,2]
[335314554,1724103032267,-500.0,0.00010638,2]
[335314555,1724103032276,-500.0,0.00010647,2]
[335314556,1724103032286,-500.0,0.00010656,2]
[335314557,1724103032295,-500.0,0.00010665,2]
[335314558,1724103032305,-500.0,0.00010673,2]
[335314559,1724103032317,-500.0,0.00010682,2]
[335314560,1724103032326,-500.0,0.00010691,2]
[335314561,1724103032336,-150.0,0.00010691,2]
[335314562,1724103032346,-500.0,0.000107,2]
[335314563,1724103032357,-300.0,0.000107,3]
[335314564,1724103032367,-500.0,0.00010709,2]
[335314565,1724103032376,-500.0,0.00010717,2]
[335314566,1724103032386,-500.0,0.00010726,2]
[335314567,1724103032398,-500.0,0.00010735,2]
[335314568,1724103032408,-500.0,0.00010744,2]
[335314569,1724103032418,-500.0,0.00010753,2]
[335314570,1724103032428,-500.0,0.00010761,2]
[335314571,1724103032438,-500.0,0.0001077,2]
[335314572,1724103032448,-500.0,0.00010779,2]
[335314573,1724103032458,-500.0,0.00010788,2]
[335314574,1724103032467,-500.0,0.00010797,2]
[335314575,1724103032477,-300.0,0.000108,3]
[335314576,1724103032487,-190.62353583,0.00010852,2]
[335314577,1724103032497,-67882.1146105,0.000109,2]
[335314578,1724103032507,-300.0,0.000109,3]
[335314579,1724103032516,-343.28830761,0.000109,2]
[335314580,1724103032525,-661.57,0.00010959,2]
[335314581,1724103032534,-250.0,0.00010959,2]
[335314582,1724103032543,-548.88,0.00010959,2]
[335314583,1724103032552,-200.0,0.00010973,2]
[335314584,1724103032561,-169.52892449,0.00010997,2]
[335314585,1724103032570,-3363.9728626,0.00010998,2]
[335314586,1724103032579,-8500.0,0.00010999,2]
[335314587,1724103032588,-500.0,0.00010999,2]
[335314588,1724103032596,-500.0,0.00010999,2]
[335314589,1724103032606,-500.0,0.00010999,2]
[335314590,1724103032615,-500.0,0.00010999,2]
[335314591,1724103032624,-500.0,0.00010999,2]
[335314592,1724103032633,-500.0,0.00010999,2]
[335314593,1724103032643,-500.0,0.00010999,2]
[335314594,1724103032652,-500.0,0.00010999,2]
[335314595,1724103032662,-396.93948636,0.00010999,2]
[335314596,1724103032671,-500.0,0.00010999,2]
[335314597,1724103032680,-500.0,0.00010999,2]
[335314598,1724103032689,-500.0,0.00010999,2]
[335314599,1724103032699,-500.0,0.00010999,2]
[335314600,1724103032708,-500.0,0.00010999,2]
[335314601,1724103032717,-500.0,0.00010999,2]
[335314602,1724103032726,-500.0,0.00010999,2]
[335314603,1724103032735,-500.0,0.00010999,2]
[335314604,1724103032744,-500.0,0.00010999,2]
[335314605,1724103032754,-500.0,0.00010999,2]
[335314606,1724103032763,-500.0,0.00010999,2]
[335314607,1724103032772,-500.0,0.00010999,2]
[335314608,1724103032782,-500.0,0.00010999,2]
[335314609,1724103032791,-500.0,0.00010999,2]
[335314610,1724103032800,-500.0,0.00010999,2]
[335314611,1724103032810,-500.0,0.00010999,2]
[335314612,1724103032819,-500.0,0.00010999,2]
[335314613,1724103032828,-411.22187548,0.00010999,2]
[335314614,1724103032837,-500.0,0.00010999,2]
[335314615,1724103032846,-500.0,0.00010999,2]
[335314616,1724103032855,-873786.35046758,0.00011,2]
[335314617,1724103032868,-1138.55742,0.00011,2]
[335314618,1724103032879,-1154.86373683,0.00011,2]
[335314619,1724103032890,-1618.07633989,0.00011,2]
[335314620,1724103032905,-200037.03382888,0.00011,2]
[335314621,1724103032924,-463.05,0.00011,2]
[335314622,1724103032935,-4259.61070056,0.00011,2]
[335314626,1724103038092,-200.0,0.00010973,2]
[335314627,1724103038102,-229.77345192,0.00011,2]
[335314628,1724103038113,-783.45476951,0.00011,2]
[335314629,1724103038151,-3444.51359154,0.00011,2]
[335314630,1724103038162,-1003.02584316,0.00011,2]
[335314631,1724103038174,-6035.8958172,0.00011,2]
[335314632,1724103038185,-11330.14277034,0.00011,2]
[335314633,1724103038212,-1203.88782761,0.00011,2]
[335314634,1724103038223,-2227.42494,0.00011,2]
[335314635,1724103038273,-378744.54799458,0.00011,2]
[335314636,1724103038282,-95934.99058475,0.00011,2]
[335314637,1724103038333,-450.78470638,0.00011,2]
[335314638,1724103038344,-184212.30686739,0.00011,2]
[335314639,1724103038356,-782.42871167,0.00011,2]
[335314714,1724103040485,-347.50656736,9.999e-05,2]
[335314715,1724103040550,-107.20869758,9.999e-05,2]
[335314716,1724103040559,-8679.84933113,0.00011,2]
[335314965,1724103043122,-1449.9999998,0.00011,2]
[335314979,1724103043183,-1775.0,0.00011,2]
[335314988,1724103043244,-2060.00876799,0.00011,2]
[335315191,1724103046267,-5008.17589993,0.00011,2]
[335315192,1724103046334,-576018.92847207,0.00011,2]
[335315193,1724103046400,-69071.66938299,0.00011,2]
[335315195,1724103128038,181.79,9.813e-05,2]
[335315196,1724103248847,229.04,8.219e-05,2]
[335315197,1724103322610,250.0,9.862e-05,2]
[335315198,1724103334238,1000.0,9.827e-05,2]
[335315199,1724103483615,295.35,9.739e-05,2]
[335315200,1724103486034,23900.0,9.729e-05,2]
[335315201,1724103646571,626.83,8.219e-05,2]
[335315202,1724103726281,176.73,9.738e-05,2]
[335315203,1724103810667,200.0,9.733e-05,2]
[335315204,1724103827770,250.0,9.742e-05,2]
[335315205,1724103912877,400.0,9.72e-05,2]
[335315206,1724103956186,17615.97,9.739e-05,2]
[335315208,1724104041854,6667.94,9.742e-05,2]
[335315216,1724104143367,623.6,8.219e-05,2]
[335315226,1724104161164,1269.15931583,9.742e-05,2]
[335315227,1724104165768,20396.1727788,9.742e-05,2]
[335315228,1724104176188,3071.43156646,9.742e-05,2]
[335315238,1724104232242,-208.05034359,0.00010099,2]
[335315239,1724104232252,-170.82,0.00010108,2]
[335315240,1724104232261,-633.0,0.00010199,2]
[335315241,1724104232270,-600.0,0.000102,3]
[335315242,1724104232279,-300.0,0.00010299,2]
[335315243,1724104232288,-97.52740368,0.00010299,2]
[335315244,1724104232300,-202.47259632,0.00010299,2]
[335315245,1724104232308,-756.52740368,0.000103,2]
[335315246,1724104232319,-1166.56665085,0.000103,2]
[335315247,1724104232330,-2790.63283039,0.000103,2]
[335315248,1724104232365,-11164.15511508,0.000103,2]
[335315249,1724104232375,-1300.0,0.000103,3]
[335315250,1724104232384,-500.0,0.00010348,2]
[335315251,1724104232393,-500.0,0.00010357,2]
[335315252,1724104232402,-500.0,0.00010365,2]
[335315253,1724104232411,-500.0,0.00010374,2]
[335315254,1724104232421,-500.0,0.00010383,2]
[335315255,1724104232431,-500.0,0.00010392,2]
[335315256,1724104232440,-2000.0,0.000104,3]
[335315257,1724104232449,-11497.0,0.000104,5]
[335315258,1724104232458,-500.0,0.00010401,2]
[335315259,1724104232467,-500.0,0.00010409,2]
[335315260,1724104232476,-500.0,0.00010418,2]
[335315261,1724104232486,-500.0,0.00010427,2]
[335315262,1724104232495,-500.0,0.00010436,2]
[335315263,1724104232504,-500.0,0.00010445,2]
[335315264,1724104232513,-500.0,0.00010453,2]
[335315265,1724104232522,-623.6,0.00010457,2]
[335315266,1724104232532,-500.0,0.00010462,2]
[335315267,1724104232541,-500.0,0.00010471,2]
[335315268,1724104232551,-500.0,0.0001048,2]
[335315269,1724104232560,-500.0,0.00010489,2]
[335315270,1724104232569,-500.0,0.00010497,2]
[335315271,1724104232578,-2700.0,0.000105,3]
[335315272,1724104232587,-3033.53018522,0.00010505,2]
[335315273,1724104232597,-1362.78031941,0.00010505,2]
[335315276,1724104232606,-500.0,0.00010506,2]
[335315278,1724104232615,-500.0,0.00010515,2]
[335315280,1724104232624,-150.0,0.00010515,2]
[335315282,1724104232635,-500.0,0.00010524,2]
[335315284,1724104232645,-500.0,0.00010533,2]
[335315286,1724104232655,-500.0,0.00010541,2]
[335315288,1724104232664,-500.0,0.0001055,2]
[335315290,1724104232673,-500.0,0.00010559,2]
[335315291,1724104232682,-500.0,0.00010568,2]
[335315292,1724104232697,-3300.0,0.000106,3]
[335315294,1724104232706,-208.05034359,0.000106,2]
[335315295,1724104232715,-170.592,0.00010698,2]
[335315297,1724104232724,-600.0,0.000107,3]
[335315298,1724104232735,-170.592,0.00010747,2]
[335315299,1724104232744,-600.0,0.000108,3]
[335315300,1724104232753,-514.93667239,0.00010862,2]
[335315301,1724104232762,-962.80465455,0.00010888,2]
[335315302,1724104232774,-155.0,0.0001089,2]
[335315303,1724104232783,-155.0,0.0001089,2]
[335315304,1724104232792,-1000.0,0.00010899,2]
[335315306,1724104232802,-2500.0,0.00010899,2]
[335315308,1724104232811,-311.70176025,0.00010899,2]
[335315310,1724104232821,-311.70176025,0.00010899,2]
[335315312,1724104232830,-311.70176025,0.00010899,2]
[335315314,1724104232839,-311.70176025,0.00010899,2]
[335315316,1724104232849,-311.70176025,0.00010899,2]
[335315318,1724104232858,-18273.6131,0.000109,2]
[335315320,1724104232867,-303.8659,0.000109,2]
[335315322,1724104232877,-2324.21109593,0.000109,2]
[335315324,1724104232886,-501.43999148,0.000109,2]
[335315326,1724104232896,-600.0,0.000109,3]
[335315328,1724104232906,-201.78608961,0.000109,2]
[335315330,1724104232915,-400.0,0.00010935,2]
[335315332,1724104232924,-155.0,0.00010949,2]
[335315334,1724104232934,-200.0,0.0001095,2]
[335315336,1724104232943,-187.07,0.00010959,2]
[335315338,1724104232952,-250.0,0.00010959,2]
[335315340,1724104232961,-464.05,0.00010959,2]
[335315342,1724104232970,-150.0,0.00010959,2]
[335315343,1724104232979,-356.68,0.00010959,2]
[335315345,1724104232989,-200.0,0.00010973,2]
[335315347,1724104232998,-200.0,0.00010973,2]
[335315349,1724104233008,-10143.95469867,0.00010997,2]
[335315351,1724104233017,-1799.78775389,0.00010999,2]
[335315353,1724104233026,-8500.0,0.00010999,2]
[335315355,1724104233036,-500.0,0.00010999,2]
[335315357,1724104233046,-500.0,0.00010999,2]
[335315359,1724104233055,-500.0,0.00010999,2]
[335315361,1724104233065,-500.0,0.00010999,2]
[335315363,1724104233074,-500.0,0.00010999,2]
[335315365,1724104233083,-500.0,0.00010999,2]
[335315367,1724104233093,-500.0,0.00010999,2]
[335315368,1724104233102,-500.0,0.00010999,2]
[335315369,1724104233111,-500.0,0.00010999,2]
[335315370,1724104233313,-500.0,0.00010999,2]
[335315371,1724104233323,-500.0,0.00010999,2]
[335315372,1724104233333,-500.0,0.00010999,2]
[335315373,1724104233342,-500.0,0.00010999,2]
[335315374,1724104233352,-500.0,0.00010999,2]
[335315375,1724104233362,-500.0,0.00010999,2]
[335315376,1724104233372,-500.0,0.00010999,2]
[335315377,1724104233382,-500.0,0.00010999,2]
[335315378,1724104233392,-500.0,0.00010999,2]
[335315379,1724104233403,-500.0,0.00010999,2]
[335315380,1724104233412,-500.0,0.00010999,2]
[335315381,1724104233421,-500.0,0.00010999,2]
[335315382,1724104233431,-161.82042715,0.00010999,2]
[335315383,1724104233440,-3301.00968249,0.00010999,2]
[335315384,1724104233449,-500.0,0.00010999,2]
[335315385,1724104233459,-500.0,0.00010999,2]
[335315386,1724104233469,-500.0,0.00010999,2]
[335315387,1724104233478,-500.0,0.00010999,2]
[335315388,1724104233487,-500.0,0.00010999,2]
[335315389,1724104233497,-500.0,0.00010999,2]
[335315390,1724104233507,-500.0,0.00010999,2]
[335315391,1724104233516,-500.0,0.00010999,2]
[335315392,1724104233526,-500.0,0.00010999,2]
[335315393,1724104233535,-500.0,0.00010999,2]
[335315394,1724104233544,-500.0,0.00010999,2]
[335315395,1724104233554,-500.0,0.00010999,2]
[335315396,1724104233563,-500.0,0.00010999,2]
[335315397,1724104233572,-500.0,0.00010999,2]
[335315398,1724104233581,-500.0,0.00010999,2]
[335315399,1724104233590,-500.0,0.00010999,2]
[335315400,1724104233599,-445.08,0.00010999,2]
[335315401,1724104233608,-848.39,0.00010999,2]
[335315402,1724104233618,-848.39,0.00010999,2]
[335315403,1724104233627,-848.39,0.00010999,2]
[335315404,1724104233636,-848.39,0.00010999,2]
[335315405,1724104233645,-848.39,0.00010999,2]
[335315406,1724104233655,-848.39,0.00010999,2]
[335315407,1724104233665,-848.39,0.00010999,2]
[335315408,1724104233674,-848.39,0.00010999,2]
[335315409,1724104233683,-848.39,0.00010999,2]
[335315410,1724104233695,-848.39,0.00010999,2]
[335315411,1724104233705,-848.39,0.00010999,2]
[335315412,1724104233715,-848.39,0.00010999,2]
[335315413,1724104233725,-418.69039571,0.00010999,2]
[335315414,1724104233735,-848.39,0.00010999,2]
[335315415,1724104233745,-848.39,0.00010999,2]
[335315416,1724104233755,-848.39,0.00010999,2]
[335315417,1724104233764,-848.39,0.00010999,2]
[335315418,1724104233775,-848.39,0.00010999,2]
[335315419,1724104233784,-848.39,0.00010999,2]
[335315420,1724104233793,-848.39,0.00010999,2]
[335315421,1724104233802,-848.39,0.00010999,2]
[335315422,1724104233811,-848.39,0.00010999,2]
[335315423,1724104233820,-848.39,0.00010999,2]
[335315424,1724104233831,-848.39,0.00010999,2]
[335315425,1724104233840,-848.53741037,0.00010999,2]
[335315426,1724104233849,-500.0,0.00010999,2]
[335315427,1724104233859,-500.0,0.00010999,2]
[335315428,1724104233868,-500.0,0.00010999,2]
[335315429,1724104233877,-500.0,0.00010999,2]
[335315430,1724104233886,-500.0,0.00010999,2]
[335315431,1724104233896,-500.0,0.00010999,2]
[335315432,1724104233906,-500.0,0.00010999,2]
[335315433,1724104233915,-500.0,0.00010999,2]
[335315434,1724104233924,-500.0,0.00010999,2]
[335315435,1724104233934,-500.0,0.00010999,2]
[335315436,1724104233943,-500.0,0.00010999,2]
[335315437,1724104233952,-500.0,0.00010999,2]
[335315438,1724104233961,-500.0,0.00010999,2]
[335315439,1724104233970,-500.0,0.00010999,2]
[335315440,1724104233980,-500.0,0.00010999,2]
[335315441,1724104233989,-500.0,0.00010999,2]
[335315442,1724104233998,-500.0,0.00010999,2]
[335315443,1724104234008,-150.6,0.00010999,2]
[335315444,1724104234017,-500.0,0.00010999,2]
[335315445,1724104234026,-500.0,0.00010999,2]
[335315446,1724104234035,-500.0,0.00010999,2]
[335315447,1724104234044,-500.0,0.00010999,2]
[335315448,1724104234053,-500.0,0.00010999,2]
[335315449,1724104234063,-200.0,0.00010999,2]
[335315450,1724104234072,-500.0,0.00010999,2]
[335315451,1724104234082,-500.0,0.00010999,2]
[335315452,1724104234092,-500.0,0.00010999,2]
[335315453,1724104234101,-500.0,0.00010999,2]
[335315454,1724104234111,-500.0,0.00010999,2]
[335315455,1724104234121,-500.0,0.00010999,2]
[335315456,1724104234131,-500.0,0.00010999,2]
[335315457,1724104234141,-500.0,0.00010999,2]
[335315458,1724104234151,-500.0,0.00010999,2]
[335315459,1724104234166,-500.0,0.00010999,2]
[335315460,1724104234175,-500.0,0.00010999,2]
[335315461,1724104234185,-500.0,0.00010999,2]
[335315462,1724104234193,-500.0,0.00010999,2]
[335315463,1724104234203,-500.0,0.00010999,2]
[335315464,1724104234212,-500.0,0.00010999,2]
[335315465,1724104234221,-374.84765042,0.00010999,2]
[335315466,1724104234230,-500.0,0.00010999,2]
[335315467,1724104234240,-500.0,0.00010999,2]
[335315468,1724104234249,-103459.34665628,0.00011,2]
[335315469,1724104234262,-600.0,0.00011,2]
[335315470,1724104234273,-571.61940899,0.00011,2]
[335315471,1724104234284,-1908.19961553,0.00011,2]
[335315472,1724104234295,-5371.78642001,0.00011,2]
[335315473,1724104234306,-1000.0,0.00011,2]
[335315474,1724104234319,-669.94125223,0.00011,2]
[335315475,1724104234330,-2584.73800879,0.00011,2]
[335315476,1724104234342,-535.8515108,0.00011,2]
[335315477,1724104234357,-307.8334,0.00011,2]
[335315478,1724104234367,-2743.0,0.00011,2]
[335315483,1724104238294,-311.70176025,0.000109,2]
[335315484,1724104238303,-3758.38121882,0.00011,2]
[335315485,1724104238314,-188243.60607493,0.00011,2]
[335315486,1724104238323,-117735.23270099,0.00011,2]
[335315487,1724104238353,-795.0000001,0.00011,2]
[335315488,1724104238468,-617.1236486,0.00011,2]
[335315489,1724104238479,-968.719089,0.00011,2]
[335315490,1724104238490,-468.50164004,0.00011,2]
[335315491,1724104238500,-58096.69761641,0.00011,2]
[335315492,1724104238511,-668.26362144,0.00011,2]
[335315493,1724104238522,-7991.34343518,0.00011,2]